Workbook

Sheet Начало

Sheet Команды
A3: № | B3: Команда | C3: Город | D3: Тренер-представитель | F3: 2005-2002 | G3: Подростки М
A4: 1 | B4: Арба | C4: Томск | G4: Подростки Ж
A5: 2 | B5: Кедр | C5: Томск | F5: 2001-2000 | G5: Юноши
A6: 3 | B6: ДЮСШ-16 | C6: Томск | G6: Девушки
A7: 4 | F7: 1999-1998 | G7: Юноши
A8: 5 | G8: Девушки
A9: 6 | G9: ИТОГО

Sheet М. 2006-2008
C3: ИТОГОВЫЙ ПРОТОКОЛ
C4: Мальчики 2006-2008
A5: Место | B5: Фамилия, Имя | C5: Год | D5: разр. | E5: Команда | F5: Квалификация 1 | I5: Квалификация 2 | M5: Финал | P5: Вып. Разр.
C6: рожд. | F6: рез. | G6: + | H6: Балл | I6: рез. | J6: + | K6: Балл | L6: Рейтинг | M6: рез. | N6: + | O6: время
A7: 1 | B7: Пуков Пётр | C7: 2006 | D7: б\р | E7: Юнис | F7: TOP | H7: 9.5 | I7: TOP | K7: 4.5 | L7: =(H7*K7)^0.5 -> 6.538348415 | M7: 14
A8: 2 | B8: Ладыгин Артур | C8: 2006 | D8: б\р | E8: Туристенок | F8: TOP | H8: 9.5 | I8: TOP | K8: 4.5 | L8: =(H8*K8)^0.5 -> 6.538348415 | M8: 10
A9: 3 | B9: Седунов Яромир | C9: 2007 | D9: б\р | E9: Созвездие | F9: TOP | H9: 9.5 | I9: TOP | K9: 4.5 | L9: =(H9*K9)^0.5 -> 6.538348415 | M9: 9
A10: 4 | B10: Цыганов Всеволод | C10: 2007 | D10: б\р | E10: Искра | F10: TOP | H10: 9.5 | I10: TOP | K10: 4.5 | L10: =(H10*K10)^0.5 -> 6.538348415 | M10: 7
A11: 4 | B11: Черников Платон | C11: 2007 | D11: б\р | E11: Созвездие | F11: TOP | H11: 9.5 | I11: TOP | K11: 4.5 | L11: =(H11*K11)^0.5 -> 6.538348415 | M11: 7
A12: 6 | B12: Сурков Николай | C12: 2007 | D12: б\р | E12: Созвездие | F12: TOP | H12: 9.5 | I12: TOP | K12: 4.5 | L12: =(H12*K12)^0.5 -> 6.538348415 | M12: 6
A13: 6 | B13: Сухомлин Матвей | C13: 2007 | D13: б\р | E13: Юнис | F13: TOP | H13: 9.5 | I13: TOP | K13: 4.5 | L13: =(H13*K13)^0.5 -> 6.538348415 | M13: 6
A14: 6 | B14: Помигуев Игорь | C14: 2008 | D14: б\р | E14: Арба | F14: TOP | H14: 9.5 | I14: TOP | K14: 4.5 | L14: =(H14*K14)^0.5 -> 6.538348415 | M14: 6
A15: 6 | B15: Захарчук Данил | C15: 2007 | D15: б\р | E15: Лукоморье | F15: TOP | H15: 9.5 | I15: 12 | J15: + | K15: 10 | L15: =(H15*K15)^0.5 -> 9.746794345 | M15: 6
A16: 10 | B16: Чернышёв Донат | C16: 2007 | D16: б\р | E16: Крылатый | F16: TOP | H16: 9.5 | I16: 12 | J16: + | K16: 10 | L16: =(H16*K16)^0.5 -> 9.746794345 | M16: 0
A17: 11 | B17: Бондаренко Роман | C17: 2008 | D17: б\р | E17: Next | F17: TOP | H17: 9.5 | I17: 12 | K17: 13.5 | L17: =(H17*K17)^0.5 -> 11.32475165
A18: 12 | B18: Юняев Тимофей | C18: 2008 | D18: б\р | E18: Лукоморье | F18: TOP | H18: 9.5 | I18: 12 | K18: 13.5 | L18: =(H18*K18)^0.5 -> 11.32475165
A19: 13 | B19: Махмудов Руслан | C19: 2007 | D19: б\р | E19: Созвездие | F19: TOP | H19: 9.5 | I19: 11 | K19: 16.5 | L19: =(H19*K19)^0.5 -> 12.51998403
A20: 14 | B20: Соколов Всеволод | C20: 2007 | D20: б\р | E20: Крылатый | F20: TOP | H20: 9.5 | I20: 11 | K20: 16.5 | L20: =(H20*K20)^0.5 -> 12.51998403
A21: 15 | B21: Никитин Иван | C21: 2008 | D21: б\р | E21: Next | F21: TOP | H21: 9.5 | I21: 9 | J21: + | K21: 18 | L21: =(H21*K21)^0.5 -> 13.07669683
A22: 16 | B22: Петров Егор | C22: 2007 | D22: б\р | E22: Лукоморье | F22: TOP | H22: 9.5 | I22: 8 | J22: + | K22: 19 | L22: =(H22*K22)^0.5 -> 13.43502884
A23: 17 | B23: Балдаков Алексей | C23: 2008 | D23: б\р | E23: Крылатый | F23: TOP | H23: 9.5 | I23: 6 | J23: + | K23: 22 | L23: =(H23*K23)^0.5 -> 14.45683229
A24: 18 | B24: Бельц Юрий | C24: 2007 | D24: б\р | E24: Фаворит | F24: TOP | H24: 9.5 | I24: 6 | J24: + | K24: 22 | L24: =(H24*K24)^0.5 -> 14.45683229
A25: 19 | B25: Рудык Андрей | C25: 2006 | D25: б\р | E25: Созвездие | F25: 5 | G25: + | H25: 22 | I25: 12 | J25: + | K25: 10 | L25: =(H25*K25)^0.5 -> 14.83239697
A26: 20 | B26: Щёкин Тимур | C26: 2007 | D26: б\р | E26: Фаворит | F26: 7 | G26: + | H26: 19 | I26: 12 | K26: 13.5 | L26: =(H26*K26)^0.5 -> 16.01561738
A27: 21 | B27: Ванюнин Андрей | C27: 2008 | D27: б\р | E27: Арба | F27: 7 | H27: 20 | I27: 12 | K27: 13.5 | L27: =(H27*K27)^0.5 -> 16.43167673
A28: 22 | B28: Байдали Михаил | C28: 2007 | D28: б\р | E28: Фаворит | F28: 4 | G28: + | H28: 23 | I28: 7 | K28: 20 | L28: =(H28*K28)^0.5 -> 21.44761059
A29: 23 | B29: Диев Владислав | C29: 2006 | D29: б\р | E29: Крылатый | F29: 6 | G29: + | H29: 21 | I29: 6 | J29: + | K29: 22 | L29: =(H29*K29)^0.5 -> 21.49418526

Sheet ж. 2006-2008
C2: ИТОГОВЫЙ ПРОТОКОЛ
C3: Девочки 2006-2008
A5: Место | B5: Фамилия, Имя | C5: Год | E5: Команда | F5: Квалификация 1 | I5: Квалификация 2 | M5: Финал | P5: Вып. Разр.
C6: рожд. | D6: разр. | F6: рез. | G6: + | H6: Балл | I6: рез. | J6: + | K6: Балл | L6: Рейтинг | M6: рез. | N6: + | O6: Время
A7: 1 | B7: Дубровина Татьяна | C7: 2006 | D7: б\р | E7: Арба | F7: TOP | H7: 2.5 | I7: 11 | K7: 18 | L7: =(H7*K7)^0.5 -> 6.708203932 | M7: TOP
A8: 2 | B8: Мелентович Мила | C8: 2006 | D8: б\р | E8: Юнис | F8: TOP | H8: 2.5 | I8: TOP | K8: 8.5 | L8: =(H8*K8)^0.5 -> 4.609772229 | M8: 14
A9: 3 | B9: Козьменко Лиза | C9: 2007 | D9: б\р | E9: Юнис | F9: 10 | H9: 5 | I9: TOP | K9: 8.5 | L9: =(H9*K9)^0.5 -> 6.519202405 | M9: 13
A10: 4 | B10: Меркушева Евгения | C10: 2007 | D10: б\р | E10: Арба | F10: 8 | H10: 9 | I10: TOP | K10: 8.5 | L10: =(H10*K10)^0.5 -> 8.746427842 | M10: 9 | N10: +
A11: 5 | B11: Чернобай Анастасия | C11: 2007 | D11: б\р | E11: Искра | F11: TOP | H11: 2.5 | I11: TOP | K11: 8.5 | L11: =(H11*K11)^0.5 -> 4.609772229 | M11: 8
A12: 6 | B12: Хижняк Елизавета | C12: 2008 | D12: б\р | E12: Next | F12: 7 | H12: 12,10 | I12: TOP | K12: 8.5 | L12: =(H12*K12)^0.5 -> 10.1414989 | M12: 8
A13: 7 | B13: Боровкова Валерия | C13: 2007 | D13: б\р | E13: Лукоморье | F13: 7 | H13: 12,5 | I13: TOP | K13: 8.5 | L13: =(H13*K13)^0.5 -> 10.30776406 | M13: 4
A14: 8 | B14: Гончар Ирина | C14: 2008 | D14: б\р | E14: Лукоморье | F14: 9 | G14: + | H14: 6 | I14: TOP | K14: 8.5 | L14: =(H14*K14)^0.5 -> 7.141428429 | M14: 3 | N14: +
A15: 9 | B15: Рахманова Софья | C15: 2008 | D15: б\р | E15: Фаворит | F15: TOP | H15: 2.5 | I15: TOP | K15: 8.5 | L15: =(H15*K15)^0.5 -> 4.609772229 | M15: 2 | N15: +
A16: 10 | B16: Правосуд Ева | C16: 2008 | D16: б\р | E16: Искра | F16: 9 | H16: 7,5 | I16: TOP | K16: 8.5 | L16: =(H16*K16)^0.5 -> 7.984359711 | M16: 2
A17: 11 | B17: Бойко Алиса | C17: 2007 | D17: б\р | E17: Туристенок | F17: 7 | H17: 12,6 | I17: TOP | K17: 8.5 | L17: =(H17*K17)^0.5 -> 10.34891299
A18: 12 | B18: Камнева Ангелина | C18: 2007 | D18: б\р | E18: Арба | F18: 7 | H18: 12,7 | I18: TOP | K18: 8.5 | L18: =(H18*K18)^0.5 -> 10.38989894
A19: 13 | B19: Шевелёва Дарья | C19: 2007 | D19: б\р | E19: Крылатый | F19: 7 | H19: 12,8 | I19: TOP | K19: 8.5 | L19: =(H19*K19)^0.5 -> 10.43072385
A20: 14 | B20: Николаевская Анастасия | C20: 2008 | D20: б\р | E20: Фаворит | F20: 7 | H20: 12,9 | I20: TOP | K20: 8.5 | L20: =(H20*K20)^0.5 -> 10.47138959
A21: 15 | B21: Гуляева Мария | C21: 2006 | D21: б\р | E21: Юнис | F21: 5 | G21: + | H21: 16 | I21: TOP | K21: 8.5 | L21: =(H21*K21)^0.5 -> 11.66190379
A22: 16 | B22: Верхотурова Ангелина | C22: 2007 | D22: б\р | E22: Фаворит | F22: 9 | H22: 7,5 | I22: 3 | K22: 19 | L22: =(H22*K22)^0.5 -> 11.93733639
A23: 17 | B23: Лаухина Марина | C23: 2008 | D23: б\р | E23: Фаворит | F23: 5 | H23: 17 | I23: TOP | K23: 8.5 | L23: =(H23*K23)^0.5 -> 12.02081528
A24: 18 | B24: Латышова Анастасия | C24: 2008 | D24: б\р | E24: Арба | F24: 3 | H24: 18 | I24: TOP | K24: 8.5 | L24: =(H24*K24)^0.5 -> 12.36931688
A25: 19 | B25: Любченко Софья | C25: 2007 | D25: б\р | E25: Арба | F25: 2 | H25: 19 | I25: TOP | K25: 8.5 | L25: =(H25*K25)^0.5 -> 12.70826503
F36: T

Sheet М.2009 и младше
C3: ИТОГОВЫЙ ПРОТОКОЛ
C4: Мальчики 2009 и младше
A5: Место | B5: Фамилия, Имя | C5: Год | D5: разр. | E5: Команда | F5: Квалификация 1 | I5: Квалификация 2 | L5: Рейтинг | M5: Финал | P5: Вып. Разр.
C6: рожд. | F6: рез. | G6: + | H6: Балл | I6: рез. | J6: + | K6: Балл | M6: рез. | N6: + | O6: Время
A7: 1 | B7: Акимов Семен | C7: 2009 | D7: б\р | E7: Искра | F7: 7 | H7: 9
A8: 2 | B8: Щербин Владимир | C8: 2009 | D8: б\р | E8: Лукоморье
A9: 3 | B9: Щербин Дмитрий | C9: 2009 | D9: б\р | E9: Лукоморье

Sheet Лист1 (hidden)
A1: 2 | B1: Рудько Семен | C1: 87 | D1: КМС | E1: ДЮСШ-16 | F1: TOP | H1: 1
A2: 6 | B2: Понамарев Стас | C2: 85 | D2: КМС | E2: ДЮСШ-16 | F2: TOP | H2: 1
A3: 13 | B3: Копытов Федор | C3: 88 | D3: КМС | E3: ДЮСШ-16 | F3: TOP | H3: 1
A4: 14 | B4: Дощинский Максим | C4: 85 | D4: КМС | E4: ДЮСШ-16 | F4: TOP | H4: 1
A5: 17 | B5: Михалев Евгений | C5: 81 | D5: б/р | E5: Ариадна | F5: TOP | H5: 1
A6: 18 | B6: Параев Сергей | C6: 89 | D6: КМС | E6: ДЮСШ-16 | F6: TOP | H6: 1
A7: 21 | B7: Кобелев Денис | C7: 82 | D7: 1 | E7: ДЮСШ-16 | F7: TOP | H7: 1
A8: 8 | B8: Карих Дима | C8: 72 | D8: КМС | E8: Ветеран | F8: 21 | H8: 8
A9: 9 | B9: Кузнецов Александр | C9: 84 | D9: б/р | E9: Ариадна | F9: 21 | H9: 8
A10: 20 | B10: Черкашин Иван | C10: 85 | D10: б/р | E10: Ариадна | F10: 20 | H10: 10
A11: 10 | B11: Петухов Виталий | C11: 88 | D11: 1 | E11: ДЮСШ-16 | F11: 19 | G11: + | H11: 11
A12: 11 | B12: Мякшин Андрей | C12: 87 | D12: б/р | E12: Ариадна | F12: 19 | G12: + | H12: 11
A13: 12 | B13: Аксименко Витя | C13: 88 | D13: 1 | E13: Арба | F13: 19 | G13: + | H13: 11
A14: 16 | B14: Прокопенко Кирилл | C14: 89 | D14: КМС | E14: ДЮСШ-16 | F14: 19 | G14: + | H14: 11
A15: 1 | B15: Жигалов Федор | C15: 89 | D15: б/р | E15: Ариадна | F15: 19 | H15: 15
A16: 4 | B16: Татарчуков Саша | C16: 91 | D16: 3 | E16: ДЮСШ-16 | F16: 19 | H16: 15
A17: 15 | B17: Мишков Андрей | C17: 70 | D17: б/р | E17: Ветеран | F17: 19 | H17: 15
A18: 7 | B18: Чернов Павел | D18: б/р | E18: Ариадна | F18: 18 | G18: + | H18: 18
A19: 5 | B19: Новиков Анатолий | C19: 89 | D19: б/р | E19: ДЮСШ-16 | F19: 18 | H19: 19
A20: 19 | B20: Осмольский Александр | C20: 87 | D20: б/р | E20: Арба | F20: 15 | G20: + | H20: 20
A21: 3 | B21: Лебедев Александр | C21: 87 | D21: б/р | E21: Ариадна | F21: 4 | H21: 21
A22: 1 | B22: Мочалов Иван | C22: 82 | D22: б/р | E22: Ариадна | I22: TOP | K22: 1
A23: 2 | B23: Асланов Руслан | C23: 89 | D23: 3 | E23: ДЮСШ-16 | I23: TOP | K23: 1
A24: 3 | B24: Терехин Василий | C24: 84 | D24: КМС | E24: ТАКТ | I24: TOP | K24: 1
A25: 4 | B25: Жуков Сергей | C25: 79 | D25: б/р | E25: Ариадна | I25: TOP | K25: 1
A26: 7 | B26: Морев Артем | C26: 89 | D26: КМС | E26: ДЮСШ-16 | I26: TOP | K26: 1
A27: 9 | B27: Сидорко Сережа | C27: 89 | E27: ДЮСШ-16 | I27: TOP | K27: 1
A28: 15 | B28: Петин Ваня | D28: 2 | E28: ТАКТ | I28: TOP | K28: 1
A29: 16 | B29: Назаров Никита | C29: 84 | D29: КМС | E29: Сам | I29: TOP | K29: 1
A30: 17 | B30: Федотов Александр | C30: 76 | D30: б/р | E30: ТАКТ | I30: TOP | K30: 1
A31: 18 | B31: Филатьев Олег | C31: 79 | D31: КМС | E31: Альпклуб | I31: TOP | K31: 1
A32: 19 | B32: Алтухов Антон | C32: 84 | D32: 1 | E32: Ариадна | I32: TOP | K32: 1
A33: 20 | B33: Паршин Антон | C33: 81 | D33: 2 | E33: Барнаул | I33: TOP | K33: 1
A34: 22 | B34: Ложкомоев Саша | C34: 82 | D34: 1 | E34: ДЮСШ-16 | I34: TOP | K34: 1
A35: 25 | B35: Новоселов Саша | C35: 84 | D35: КМС | E35: ДЮСШ-16 | I35: TOP | K35: 1
A36: 5 | B36: ДерешевДанил | C36: 86 | D36: б/р | E36: Ариадна | I36: 16 | K36: 15
A37: 6 | B37: Шестаков Василий | C37: 88 | D37: б/р | E37: ДЮСШ-16 | I37: 16 | K37: 15
A38: 11 | B38: Тулаев Денис | C38: 74 | D38: б/р | E38: ТАКТ | I38: 16 | K38: 15
A39: 8 | B39: Субботин Андрей | C39: 89 | D39: 2ю | E39: ДЮСШ-16 | I39: 15 | K39: 18
A40: 10 | B40: Соловьев Тимофей | C40: 89 | D40: 1 | E40: ДЮСШ-16 | I40: 15 | K40: 18
A41: 23 | B41: Варюшкин Саша | C41: 88 | D41: б/р | E41: ДЮСШ-16 | I41: 15 | K41: 18
A42: 14 | B42: Свиридов Костя | C42: 82 | D42: б/р | E42: Ариадна | I42: 14 | K42: 21
A43: 13 | B43: Попов Антон | C43: 87 | D43: б/р | E43: Кедр | I43: 12 | K43: 22
A44: 12 | B44: Седлецкий Захар | C44: 83 | D44: б/р | E44: Альпклуб | I44: 11 | K44: 23
A45: 21 | B45: Калинин Павел | C45: 89 | D45: б/р | E45: Арба | I45: 11 | K45: 23
A46: 24 | B46: Гуренков Костя | C46: 77 | D46: б/р | E46: Альпклуб | I46: н/я

Sheet Подростки Муж. скорость (hidden)
E2: ИТОГОВЫЙ ПРОТОКОЛ
E3: юноши младшая группа
A5: Итог. | B5: Фамилия имя отчество | C5: Год | D5: спорт. | H5: 1/4 финала | K5: 1/2 финала | N5: финал | P5: Вып.
B6: год рождения | C6: Рожд. | D6: разр. | E6: Город | F6: Тренер | G6: бал. | H6: прим | I6: место | J6: бал. | K6: прим | L6: место | M6: бал. | N6: прим | O6: место | P6: разр.
B7: Рудько Семен | C7: 87 | D7: 1 | E7: Томск | F7: Афанасьева
B8: Романов Рома | C8: 87 | D8: 1ю | E8: Томск | F8: Афанасьева
B9: Пушкарев Дима | C9: 87 | D9: б/р | E9: Томск | F9: Афанасьева
B10: Мельников Б | C10: 87 | D10: б/р | E10: Томск | F10: Афанасьва
B11: Марков паша | C11: 88 | D11: 2ю | E11: Томск | F11: Афанасьева
B12: Кошкаров Егор | C12: 89 | D12: 2ю | E12: Томск | F12: Афанасьева
B13: Юлдашев Тимур | C13: 89 | D13: 2 | E13: Томск | F13: Афанасьева
B14: Ефимов Женя | C14: 87 | D14: б.р. | E14: Кемерово | F14: Ильины
B15: Козик Руслан | C15: 87 | D15: 2 юн | E15: Кемерово | F15: Ильины
B16: Орлов Антон | C16: 88 | D16: б.р. | E16: Кемерово | F16: Ильины
B17: Орлов Саша | C17: 90 | D17: б.р. | E17: Кемерово | F17: Ильины
B18: Догужский Костя | C18: 89 | D18: б.р. | E18: Томск | F18: Лунева
B19: Чеканцев Александр | C19: 89 | D19: 1 юн | E19: Томск | F19: Лунева
B20: Лещев Владимир | C20: 88 | D20: б.р. | E20: Томск | F20: Лунева
B21: Санаров Денис | C21: 88 | D21: б.р. | E21: Томск | F21: Лунева
B22: Борцов Захар | C22: 87 | D22: б.р. | E22: Томск | F22: Лунева
B23: Борцов Владимир | C23: 87 | D23: б.р. | E23: Томск | F23: Лунева
B24: Крымов Алексей | C24: 87 | D24: 2 | E24: Томск | F24: Лунева
B25: Поздеев Саша | C25: 91 | D25: б.р. | E25: Новосибирск | F25: Бурдакова
B26: Фаге Алексей | C26: 87 | D26: б.р. | E26: Новосибирск | F26: Бурдакова
B27: Попов Максим | C27: 87 | D27: б.р. | E27: Новосибирск | F27: Бурдакова
B28: Попов Максим | C28: 87 | D28: б.р. | E28: Томск | F28: Немцева
B29: Колбин Петя | C29: 87 | D29: б.р. | E29: Томск | F29: Немцева
B30: Сафроненко Андрей | C30: 87 | D30: 2 юн | E30: Томск | F30: Немцева
B31: Байгулов Андрей | C31: 87 | D31: 3 | E31: Томск | F31: Немцева
B32: Васильев Алексей | C32: 87 | D32: 2 | E32: Томск | F32: Немцева
B33: Аршан Женя | C33: 87 | D33: б.р. | E33: Кемерово | F33: Бушуева
B34: Чесноков Саша | C34: 87 | D34: б.р. | E34: Кемерово | F34: Бушуева
B35: Мышкевич Саша | C35: 88 | D35: б.р. | E35: Кемерово | F35: Бушуева
B36: Лукин Саша | C36: 87 | D36: 2 юн | E36: Томск | F36: Карих
B37: Хасанов Каиль | C37: 87 | D37: б.р. | E37: Томск | F37: Карих
B38: Тихонов Женя | C38: 87 | D38: б.р. | E38: Томск | F38: Карих
B39: Хлыстов Миша | C39: 88 | D39: б.р. | E39: Томск | F39: Карих
B40: Овчинников Вова | C40: 89 | D40: б.р. | E40: Томск | F40: Карих
B41: Морозов Илья | C41: 87 | D41: б.р. | E41: Бийск | F41: Пляскин
B42: Сенкевич Сергей | C42: 89 | D42: б.р. | E42: Томск | F42: Шлехт
B43: Прокопенко Кирилл | C43: 89 | D43: 3 | E43: Томск | F43: Шлехт
B44: Шурупов Слава | C44: 88 | D44: б.р. | E44: Томск | F44: Шлехт
B45: Попов Женя | C45: 88 | D45: б.р. | E45: Томск | F45: Шлехт

Sheet Младшие Муж. скорость (hidden)
E2: ИТОГОВЫЙ ПРОТОКОЛ
E3: юноши младшая группа
A5: Итог. | B5: Фамилия имя отчество | C5: Год | D5: спорт. | H5: 1/4 финала | K5: 1/2 финала | N5: финал | P5: Вып.
B6: год рождения | C6: Рожд. | D6: разр. | E6: Город | F6: Тренер | G6: бал. | H6: прим | I6: место | J6: бал. | K6: прим | L6: место | M6: бал. | N6: прим | O6: место | P6: разр.
B7: Климов Коля | C7: 86 | D7: 2 | E7: Томск | F7: Афанасьева
B8: Жолбосынов Айбек | C8: 85 | D8: б/р | E8: Томск | F8: Афанасьева
B9: Мустафин Эльдар | C9: 85 | D9: 2ю | E9: Томск | F9: Афанасьева
B10: Коротков Миша | C10: 85 | D10: КМС | E10: Томск | F10: Афанасьева
B11: Дощинский Максим | C11: 85 | D11: кмс | E11: Томск | F11: Афанасьева
B12: Чиндин Сергей | C12: 85 | D12: 1 | E12: Кемерово | F12: Ильины
B13: Лумнов Женя | C13: 86 | D13: б.р. | E13: Кемерово | F13: Ильины
B14: Котенко Алексей | C14: 86 | D14: б.р. | E14: Кемерово | F14: Ильины
B15: Павлович Николай | C15: 85 | D15: 1 | E15: Томск | F15: Лунева
B16: Чеканцев Никита | C16: 85 | D16: 1 | E16: Томск | F16: Лунева
B17: Пономарев Станислав | C17: 85 | D17: КМС | E17: Томск | F17: Лунева
B18: Загвоздин Константин | C18: 85 | D18: КМС | E18: Томск | F18: Лунева
B19: Дуплинский Георгий | C19: 86 | D19: 1 | E19: Новокузнецк | F19: Санников
B20: Романцев Максим | C20: 85 | D20: 2 | E20: Новокузнецк | F20: Санников
B21: Коллегов Иван | C21: 86 | D21: 3 | E21: Новосибирск | F21: Бурдакова
B22: Чаюн Игорь | C22: 86 | D22: 2 | E22: Новосибирск | F22: Бурдакова
B23: Максимов Василий | C23: 86 | D23: б.р. | E23: Новосибирск | F23: Бурдакова
B24: Качан Алексей | C24: 86 | D24: б.р. | E24: Томск | F24: Немцева
B25: Смуткин Егор | C25: 86 | D25: 1 | E25: Томск | F25: Шлехт
B26: Смуткин Андрей | C26: 85 | D26: КМС | E26: Томск | F26: Шлехт
B27: Шлехт Егор | C27: 85 | D27: 1 | E27: Томск | F27: Шлехт
B28: Тихонов Егор | C28: 85 | D28: б.р. | E28: Томск | F28: Карих
B29: Камышный Толя | C29: 86 | D29: б.р. | E29: Томск | F29: Карих
B30: Григорьев Тимофей | C30: 85 | D30: 1 | E30: Бийск | F30: Пляскин
B31: Панюков Паша | C31: 86 | D31: б.р. | E31: Кемерово | F31: Бушуева
B32: Кожемяко Эдик | C32: 86 | D32: КМС | E32: Кемерово | F32: Бушуева
B33: Деменев Андрей | C33: 85 | D33: КМС | E33: Кемерово | F33: Бушуева
B34: Новоселов Женя | C34: 86 | D34: 1 | E34: Томск | F34: Шлехт

Sheet Средние Муж. скорость (hidden)
E2: ИТОГОВЫЙ ПРОТОКОЛ
E3: юноши младшая группа
A5: Итог. | B5: Фамилия имя отчество | C5: Год | D5: спорт. | H5: 1/4 финала | K5: 1/2 финала | N5: финал | P5: Вып.
B6: год рождения | C6: Рожд. | D6: разр. | E6: Город | F6: Тренер | G6: бал. | H6: прим | I6: место | J6: бал. | K6: прим | L6: место | M6: бал. | N6: прим | O6: место | P6: разр.
B7: Назаров Никита | C7: 84 | D7: 1 | E7: Томск | F7: Афанасьева
B8: Коротков Александр | C8: 83 | D8: кмс | E8: Томск | F8: Афанасьева
B9: Александров | C9: 84 | D9: КМС | E9: Кемерово | F9: Ильины
B10: Демахин Алеквей | C10: 84 | D10: КМС | E10: Кемерово | F10: Ильины
B11: Демахин Алеквей | C11: 84 | D11: КМС | E11: Кемерово | F11: Ильины
B12: Ильин Евгений | C12: 83 | D12: КМС | E12: Томск | F12: Лунева
B13: Кропотов Андрей | C13: 84 | D13: б.р. | E13: Новокузнецк | F13: Санников
B14: Чистяков Сергей | C14: 84 | D14: б.р. | E14: Новокузнецк | F14: Санников
B15: Травников Алексей | C15: 83 | D15: 1 | E15: Новокузнецк | F15: Санников
B16: Павлов Иван | C16: 84 | D16: 1 | E16: Новосибирск | F16: Бурдакова
B17: Зверев Олег | C17: 84 | D17: 1 | E17: Томск | F17: Шлехт
B18: Загальский Олег | C18: 83 | D18: КМС | E18: Томск | F18: Шлехт
B19: Огурцов Алеша | C19: 84 | D19: 2 | E19: Кемерово | F19: Бушуева
B20: Гуляев Паша | C20: 84 | D20: КМС | E20: Кемерово | F20: Бушуева
B21: Залетов Игорь | C21: 83 | D21: КМС | E21: Кемерово | F21: Бушуева
B22: Морозов Семен | C22: 84 | D22: 1 | E22: Бийск | F22: Пляскин
B23: Саландо Слава | C23: 83 | D23: б.р. | E23: Томск | F23: Карих
B24: Корнев Сергей | C24: 83 | D24: б.р. | E24: Томск | F24: Перов
B25: Бочкарев Женя | C25: 83 | D25: 1 | E25: Барнаул | F25: Язовский
B26: Мартынов Егор | C26: 84 | D26: 1 | E26: Барнаул | F26: Язовский

Sheet Старшие Муж. скорость (hidden)
E2: ИТОГОВЫЙ ПРОТОКОЛ
E3: юноши младшая группа
A5: Итог. | B5: Фамилия имя отчество | C5: Год | D5: спорт. | H5: 1/4 финала | K5: 1/2 финала | N5: финал | P5: Вып.
B6: год рождения | C6: Рожд. | D6: разр. | E6: Город | F6: Тренер | G6: бал. | H6: прим | I6: место | J6: бал. | K6: прим | L6: место | M6: бал. | N6: прим | O6: место | P6: разр.
B7: Борисов А. | C7: 82 | D7: 1 | E7: Томск | F7: Афанасьева
B8: Борисов А. | C8: 82 | D8: 1 | E8: Томск | F8: Афанасьева
B9: Красов Алексей | C9: 82 | D9: КМС | E9: Томск | F9: Лунева
B10: Сайгаш Дима | C10: 82 | D10: КМС | E10: Томск | F10: Шлехт
B11: Зуев Василий | C11: 82 | D11: КМС | E11: Томск | F11: Шлехт
B12: Сафонов Алексей | C12: 81 | D12: КМС | E12: Томск | F12: Шлехт
B13: Кучеров Виктор | C13: 81 | D13: КМС | E13: Кемерово | F13: Бушуева
B14: Шадринцев Артем | C14: 81 | D14: КМС | E14: Бийск | F14: Пляскин

Sheet Взрослые Муж. скорость (hidden)
E2: ИТОГОВЫЙ ПРОТОКОЛ
E3: юноши младшая группа
A5: Итог. | B5: Фамилия имя отчество | C5: Год | D5: спорт. | H5: 1/4 финала | K5: 1/2 финала | N5: финал | P5: Вып.
B6: год рождения | C6: Рожд. | D6: разр. | E6: Город | F6: Тренер | G6: бал. | H6: прим | I6: место | J6: бал. | K6: прим | L6: место | M6: бал. | N6: прим | O6: место | P6: разр.
B7: Алексеев Игорь | C7: 80 | D7: кмс | E7: томск
B8: Гречушкин Саша | C8: 80 | D8: 1 | E8: Новосибирск | F8: Бурдакова
B9: Алексеев Игорь | C9: 80 | D9: КМС | E9: Новосибирск | F9: Бурдакова
B10: Ксенчук Андрей | C10: 80 | D10: б.р. | E10: Новосибирск | F10: Бурдакова
B11: Мануйлов Виктор | C11: 80 | D11: 3 | E11: Новосибирск | F11: Бурдакова
B12: Чащин Дима | C12: 79 | D12: 3 | E12: Томск | F12: Шлехт
B13: Залетов Андрей | C13: 80 | D13: КМС | E13: Кемерово | F13: Бушуева
B14: Алексеев Игорь | C14: 80 | D14: КМС | E14: Новосибирск | F14: Бурдакова
B15: Ксенчук Андрей | C15: 80 | D15: б.р. | E15: Новосибирск | F15: Бурдакова
B16: Гречушкин Александр | C16: 80 | D16: 1 | E16: Новосибирск | F16: Бурдакова
B17: Мануйлов Виктор | C17: 80 | D17: 2 | E17: Новосибирск | F17: Бурдакова
B18: Леонтьев Н. | C18: 80 | D18: КМС | E18: Барнаул | F18: Язовский
B19: Яшин Егор | C19: 79 | D19: 1 | E19: Томск | F19: "Арба"
B20: Бекенов Ерлан | C20: 80 | D20: б.р. | E20: Томск | F20: "Ариадна"
B21: Иваненко | C21: 79 | D21: б.р. | E21: Томск | F21: ?

Sheet Подростки Жен. скорость (hidden)
E2: ИТОГОВЫЙ ПРОТОКОЛ
E3: юноши младшая группа
A5: Итог. | B5: Фамилия имя отчество | C5: Год | D5: спорт. | H5: 1/4 финала | K5: 1/2 финала | N5: финал | P5: Вып.
B6: год рождения | C6: Рожд. | D6: разр. | E6: Город | F6: Тренер | G6: бал. | H6: прим | I6: место | J6: бал. | K6: прим | L6: место | M6: бал. | N6: прим | O6: место | P6: разр.
B7: Куликова Люба | C7: 87 | D7: 2ю | E7: Томск | F7: Афанасьева
B8: Хорсова Алена | C8: 87 | D8: б/р | E8: Томск | F8: Афанасьева
B9: Мареева Ира | C9: 88 | D9: б/р | E9: Томск | F9: Афанасьева
B10: Мареева Ира | C10: 88 | D10: б/р | E10: Томск | F10: Афанасьева
B11: Зайцева Лиза | C11: 87 | D11: 2 юн | E11: Кемерово | F11: Ильины
B12: Форманчук Надя | C12: 88 | D12: б.р. | E12: Кемерово | F12: Ильины
B13: Форманчук Надя | C13: 88 | D13: б.р. | E13: Кемерово | F13: Ильины
B14: Горбунова Вика | C14: 88 | D14: б.р. | E14: Томск | F14: Лунева
B15: Павлова Ольга | C15: 87 | D15: б.р. | E15: Томск | F15: Лунева
B16: Горохова Катя | C16: 90 | D16: б.р. | E16: Новосибирск | F16: Бурдакова
B17: Горохова Катя | C17: 90 | D17: 3 | E17: Новосибирск | F17: Бурдакова
B18: Поздеева Катя | C18: 90 | D18: б.р. | E18: Новосибирск | F18: Бурдакова
B19: Гольдман Женя | C19: 87 | D19: б.р. | E19: Новосибирск | F19: Бурдакова
B20: Урманчеева Наиля | C20: 87 | D20: б.р. | E20: Томск | F20: Немцева
B21: Морозова Кристина | C21: 87 | D21: б.р. | E21: Кемерово | F21: Бушуева
B22: Зименс Аня | C22: 88 | D22: б.р. | E22: Кемерово | F22: Бушуева
B23: Линник Аня | C23: 87 | D23: б.р. | E23: Томск | F23: Карих
B24: Борзова Аня | C24: 87 | D24: 3 | E24: Бийск | F24: Пляскин

Sheet Младшие Жен. скорость (hidden)
E2: ИТОГОВЫЙ ПРОТОКОЛ
E3: юноши младшая группа
A5: Итог. | B5: Фамилия имя отчество | C5: Год | D5: спорт. | H5: 1/4 финала | K5: 1/2 финала | N5: финал | P5: Вып.
B6: год рождения | C6: Рожд. | D6: разр. | E6: Город | F6: Тренер | G6: бал. | H6: прим | I6: место | J6: бал. | K6: прим | L6: место | M6: бал. | N6: прим | O6: место | P6: разр.
B7: Попельняк Олеся | C7: 86 | D7: 2ю | E7: Томск | F7: Афанасева
B8: Гаврилюк Катя | C8: 86 | D8: 2 | E8: Кемерово | F8: Ильины
B9: Лунева Ирина | C9: 85 | D9: б.р. | E9: Томск | F9: Лунева
B10: Пономарева Валерия | C10: 85 | D10: 2 | E10: Томск | F10: Лунева
B11: Ком Ольга | C11: 86 | D11: 2 | E11: Томск | F11: Шлехт
B12: Рыбалова Оля | C12: 85 | D12: б.р. | E12: Томск | F12: Шлехт
B13: Жукова Валя | C13: 86 | D13: б.р. | E13: Томск | F13: Карих
B14: Леонтюк Ульяна | C14: 86 | D14: б.р. | E14: Томск | F14: Карих
B15: Панова Женя | C15: 86 | D15: б.р. | E15: Бийск | F15: Пляскин

Sheet Средние Жен. скорость (hidden)
E2: ИТОГОВЫЙ ПРОТОКОЛ
E3: юноши младшая группа
A5: Итог. | B5: Фамилия имя отчество | C5: Год | D5: спорт. | H5: 1/4 финала | K5: 1/2 финала | N5: финал | P5: Вып.
B6: год рождения | C6: Рожд. | D6: разр. | E6: Город | F6: Тренер | G6: бал. | H6: прим | I6: место | J6: бал. | K6: прим | L6: место | M6: бал. | N6: прим | O6: место | P6: разр.
B7: Ильина Ксения | C7: 83 | D7: 1 | E7: Томск | F7: Лунева
B8: Гильманова Вероника | C8: 84 | D8: 3 | E8: Новокузнецк | F8: Санников
B9: Дуплинская Юля | C9: 83 | D9: КМС | E9: Новокузнецк | F9: Санников
B10: Сиволапова Екатерина | C10: 83 | D10: КМС | E10: Новокузнецк | F10: Санников
B11: Бурдакова Юля | C11: 83 | D11: КМС | E11: Новосибирск | F11: Бурдакова
B12: Бугрова Таня | C12: 83 | D12: б.р. | E12: Томск | F12: Шлехт
B13: Крачковская Инга | C13: 84 | D13: б.р. | E13: Кемерово | F13: Бушуева

Sheet Старшие Жен. скорость (hidden)
E2: ИТОГОВЫЙ ПРОТОКОЛ
E3: юноши младшая группа
A5: Итог. | B5: Фамилия имя отчество | C5: Год | D5: спорт. | H5: 1/4 финала | K5: 1/2 финала | N5: финал | P5: Вып.
B6: год рождения | C6: Рожд. | D6: разр. | E6: Город | F6: Тренер | G6: бал. | H6: прим | I6: место | J6: бал. | K6: прим | L6: место | M6: бал. | N6: прим | O6: место | P6: разр.
B7: Киселева Вероника | C7: 82 | D7: 1 | E7: Кемерово | F7: Ильины
B8: Лунева Лена | C8: 81 | D8: КМС | E8: Томск | F8: Лунева
B9: Ларионова Ирина | C9: 81 | D9: КМС | E9: Томск | F9: Шлехт
B10: Бадрутдинова Наташа | C10: 81 | D10: 1 | E10: Томск | F10: Шлехт

Sheet Взрослые Жен. скорость (hidden)
E2: ИТОГОВЫЙ ПРОТОКОЛ
E3: юноши младшая группа
A5: Итог. | B5: Фамилия имя отчество | C5: Год | D5: спорт. | H5: 1/4 финала | K5: 1/2 финала | N5: финал | P5: Вып.
B6: год рождения | C6: Рожд. | D6: разр. | E6: Город | F6: Тренер | G6: бал. | H6: прим | I6: место | J6: бал. | K6: прим | L6: место | M6: бал. | N6: прим | O6: место | P6: разр.
B7: Ларина Лена | C7: 79 | D7: б.р. | E7: Томск | F7: Шлехт

Sheet Лист2
